bitfinex/quotes_SOLUSD_20241113
["timestamp","ask_amount","ask_price","bid_price","bid_amount"]
[1731511515594,0.1,215.0,214.88,0.451069]
[1731511515793,0.1,214.98,214.88,0.451069]
[1731511516024,0.1,214.95,214.88,0.451069]
[1731511516309,0.1,214.95,214.75,13.1879]
[1731511516310,161.148931,214.86,214.65,36.88888023]
[1731511516489,161.148931,214.85,214.68,0.1]
[1731511516686,161.148931,214.85,214.65,36.78888023]
[1731511516687,161.148931,214.85,214.67,4.97172651]
[1731511517086,161.148931,214.85,214.67,2.97172651]
[1731511517296,161.148931,214.85,214.66,0.93104925]
[1731511517517,161.148931,214.85,214.67,0.2]
[1731511517817,161.148931,214.85,214.67,0.1]
[1731511518137,161.148931,214.85,214.71,0.1]
[1731511518413,161.148931,214.94,214.72,0.9308917]
[1731511518714,161.248931,214.93,214.66,0.1]
[1731511518916,0.1,214.9,214.65,17.94023996]
[1731511519167,0.1,214.87,214.65,17.94023996]
[1731511519316,161.148931,214.86,214.65,18.87142332]
[1731511519510,0.1,214.91,214.65,18.87142332]
[1731511519511,161.148931,214.85,214.65,5.55902332]
[1731511519722,161.148931,214.84,214.69,0.1]
[1731511519891,161.148931,214.84,214.69,1.03095925]
[1731511520213,63.61798332,214.83,214.69,0.93095925]
[1731511520413,63.61798332,214.83,214.65,4.72783996]
[1731511520706,63.61798332,214.83,214.68,0.1]
[1731511520915,61.88240863,214.83,214.69,0.93094433]
[1731511521408,31.8475,214.87,214.69,0.93094433]
[1731511521409,61.88240863,214.86,214.69,0.93094433]
[1731511521801,61.88240863,214.85,214.69,0.93094433]
[1731511522004,31.8475,214.87,214.69,0.93094433]
[1731511522005,61.88240863,214.84,214.69,0.93094433]
[1731511522201,61.88240863,214.83,214.69,0.93094433]
[1731511522689,51.51744026,214.91,214.75,0.1]
[1731511522889,51.51744026,214.9,214.74,0.1]
[1731511523091,51.51744026,214.9,214.75,0.1]
[1731511523364,51.51744026,214.9,214.77,0.1]
[1731511523508,31.6712,214.96,214.79,0.1]
[1731511523712,31.6712,214.96,214.81,0.1]
[1731511524009,31.6712,214.96,214.75,20.0]
[1731511524393,31.6712,214.96,214.76,0.93062853]
[1731511524712,31.6712,214.96,214.77,0.1]
[1731511524916,31.6712,214.96,214.78,0.93062257]
[1731511525231,161.6,214.95,214.75,24.64122302]
[1731511525434,161.6,214.95,214.78,0.1]
[1731511525798,161.6,214.95,214.78,1.03053425]
[1731511526341,161.6,214.95,214.82,0.1]
[1731511526618,64.06905232,215.05,214.89,0.1]
[1731511526881,32.6126,215.08,214.88,0.1]
[1731511527001,64.06905232,215.07,214.87,0.1]
[1731511527156,64.06905232,215.07,214.93,0.1]
[1731511527466,32.7128,215.17,214.96,0.1]
[1731511527899,64.06905232,215.16,214.97,0.92968423]
[1731511527925,64.06905232,215.15,214.97,0.92968423]
[1731511527943,64.06905232,215.15,214.98,0.1]
[1731511528755,64.06905232,215.15,214.96,20.0]
[1731511528999,64.06905232,215.14,214.96,20.0]
[1731511529840,64.06905232,215.14,214.88,0.1]
[1731511530136,64.16905232,215.13,214.88,5.38669296]
[1731511530315,64.06905232,215.13,214.9,0.1]
[1731511530511,64.06905232,215.12,214.94,0.1]
[1731511530706,64.06905232,215.16,214.95,0.92972379]
[1731511530907,64.06905232,215.15,215.01,0.1]
[1731511531119,64.06905232,215.15,214.99,0.1]
[1731511531120,0.451069,215.21,215.03,0.1]
[1731511531322,0.451069,215.21,215.08,0.1]
[1731511531666,0.451069,215.21,215.2,36.97451504]
[1731511532501,0.451069,215.21,215.06,4.46255467]
[1731511532700,64.06905232,215.2,215.19,36.97451504]
[1731511532902,0.451069,215.21,215.19,36.97451504]
[1731511533565,161.6,215.2,215.19,36.97451504]
[1731511533708,161.6,215.2,215.17,36.97451504]
[1731511533908,161.6,215.19,215.15,36.97451504]
[1731511534120,161.6,215.19,215.17,36.97451504]
[1731511534505,161.6,215.18,215.17,36.97451504]
[1731511535136,0.451069,215.21,215.17,36.97451504]
[1731511535430,0.451069,215.21,215.2,36.97451504]
[1731511536203,0.451069,215.21,215.16,36.97451504]
[1731511536410,161.6,215.2,215.16,36.97451504]
[1731511536623,161.6,215.19,215.14,36.97451504]
[1731511536830,161.6,215.18,215.14,36.97451504]
[1731511537125,161.6,215.18,215.16,36.97451504]
[1731511537299,161.6,215.2,215.16,36.97451504]
[1731511537503,161.6,215.19,215.16,36.97451504]
[1731511537729,161.6,215.18,215.17,36.97451504]
[1731511537905,0.451069,215.21,215.17,36.97451504]
[1731511538107,161.6,215.2,215.17,36.97451504]
[1731511538318,161.6,215.19,215.15,36.97451504]
[1731511538633,161.6,215.19,215.17,36.97451504]
[1731511538835,0.451069,215.21,215.17,36.97451504]
[1731511539008,0.451069,215.21,215.2,36.97451504]
[1731511539217,0.451069,215.21,215.2,73.94903008]
[1731511539729,0.451069,215.21,215.2,93.94903008]
[1731511540310,0.451069,215.21,215.2,56.97451504]
[1731511540534,0.451069,215.21,215.2,93.94903008]
[1731511540724,0.451069,215.21,215.2,56.97451504]
[1731511541112,0.451069,215.21,215.2,36.97451504]
[1731511543823,0.451069,215.21,215.2,73.94903008]
[1731511543834,12.6337,215.39,215.22,0.1]
[1731511544134,0.451069,215.43,215.38,73.94903008]
[1731511544456,0.451069,215.43,215.42,36.97451504]
[1731511544696,0.451069,215.43,215.42,56.97451504]
[1731511545480,43.4322,215.54,215.43,20.0]
[1731511545660,43.4322,215.54,215.38,36.97451504]
[1731511545661,0.5167351,215.51,215.49,36.97451504]
[1731511545940,0.5167351,215.51,215.45,36.97451504]
[1731511546431,161.6,215.5,215.48,36.97451504]
[1731511546617,161.6,215.5,215.45,36.97451504]
[1731511547015,161.6,215.5,215.38,36.97451504]
[1731511547219,161.6,215.49,215.47,36.97451504]
[1731511547424,161.7,215.48,215.43,36.97451504]
[1731511547802,198.57451504,215.47,215.39,36.97451504]
[1731511548083,161.6,215.46,215.41,36.97451504]
[1731511549033,161.6,215.45,215.38,36.97451504]
[1731511549220,161.6,215.5,215.27,5.52938592]
[1731511549422,0.5167351,215.51,215.26,0.2]
[1731511549423,161.6,215.49,215.28,20.0]
[1731511549636,161.6,215.49,215.3,0.1]
[1731511549848,161.6,215.49,215.27,0.1]
[1731511550005,161.6,215.48,215.26,20.1]
[1731511550831,161.6,215.48,215.46,36.97451504]
[1731511551017,161.6,215.47,215.46,36.97451504]
[1731511551626,161.6,215.45,215.41,36.97451504]
[1731511552027,161.6,215.45,215.27,36.97451504]
[1731511552028,161.7,215.44,215.37,36.97451504]
[1731511552347,161.6,215.44,215.39,36.97451504]
[1731511552629,0.5167351,215.51,215.43,36.97451504]
[1731511552869,161.7,215.5,215.42,36.97451504]
[1731511553148,0.1,215.46,215.38,36.97451504]
[1731511553357,161.6,215.45,215.38,36.97451504]
[1731511553606,0.1,215.44,215.27,36.97451504]
[1731511554057,0.1,215.38,215.32,36.97451504]
[1731511554063,0.1,215.38,215.3,36.97451504]
[1731511554072,0.1,215.38,215.16,36.97451504]
[1731511554073,0.1,215.36,215.28,36.97451504]
[1731511554407,161.6,215.35,215.28,36.97451504]
[1731511554911,161.7,215.35,215.28,36.97451504]
[1731511555157,0.1,215.31,215.26,36.97451504]
[1731511555398,0.1,215.33,215.24,36.97451504]
[1731511555593,161.7,215.35,215.26,36.97451504]
[1731511555763,161.6,215.34,215.28,36.97451504]
[1731511556032,161.6,215.33,215.26,36.97451504]
[1731511556335,161.6,215.32,215.26,36.97451504]
[1731511556829,161.6,215.32,215.28,36.97451504]
[1731511557315,161.6,215.32,215.26,36.97451504]
[1731511557513,161.6,215.32,215.16,36.97451504]
[1731511557514,161.6,215.25,215.24,36.97451504]
[1731511557731,36.97451504,215.32,215.22,36.97451504]
[1731511558033,161.6,215.31,215.26,36.97451504]
[1731511558211,155.56115591,215.31,215.23,36.97451504]
[1731511558670,155.46115591,215.3,215.25,36.97451504]
[1731511558817,155.46115591,215.3,215.22,36.97451504]
[1731511558818,0.1,215.28,215.22,36.97451504]
[1731511559033,0.1,215.28,214.97,0.1]
[1731511559034,0.1,215.25,214.97,0.1]
[1731511559311,0.1,215.22,215.16,36.97451504]
[1731511559475,44.8726,215.23,215.18,36.97451504]
[1731511559938,0.1,215.2,215.12,36.97451504]
[1731511560534,0.1,215.2,215.14,36.97451504]
[1731511560738,44.8726,215.23,215.16,36.97451504]
[1731511560929,0.1,215.22,215.16,36.97451504]
[1731511561142,44.8726,215.23,215.18,36.97451504]
[1731511561348,155.46115591,215.22,215.16,36.97451504]
[1731511561640,155.46115591,215.23,215.16,36.97451504]
[1731511562337,155.46115591,215.23,215.22,36.97451504]
[1731511562641,0.1055511,215.27,215.22,36.97451504]
[1731511562824,0.1055511,215.27,215.25,36.97451504]
[1731511563338,0.1055511,215.27,215.11,5.67964425]
[1731511563548,0.1055511,215.27,215.24,36.97451504]
[1731511563549,161.6,215.26,215.24,36.97451504]
[1731511563845,0.1055511,215.27,215.16,36.97451504]
[1731511563846,161.6,215.25,215.16,36.97451504]
[1731511564053,161.6,215.24,215.16,36.97451504]
[1731511564439,161.6,215.24,215.23,36.97451504]
[1731511564688,0.1055511,215.27,215.23,36.97451504]
[1731511564839,161.6,215.26,215.16,36.97451504]
[1731511565031,161.6,215.25,215.06,0.92934703]
[1731511565252,0.1,215.22,215.0,5.77621602]
[1731511565637,0.1,215.19,215.12,36.97451504]
[1731511565641,0.1,215.19,215.1,36.97451504]
[1731511565994,161.6,215.18,215.12,36.97451504]
[1731511566266,161.6,215.18,215.14,36.97451504]
[1731511566272,161.6,215.14,215.1,36.97451504]
[1731511567072,161.6,215.18,214.97,17.91632275]
[1731511567084,20.0,215.16,215.11,36.97451504]
[1731511567092,161.6,215.15,215.11,36.97451504]
[1731511567517,161.6,215.15,215.13,36.97451504]
[1731511568432,161.6,215.19,215.13,36.97451504]
[1731511568815,161.6,215.19,215.18,36.97451504]
[1731511569131,0.1055511,215.27,215.18,36.97451504]
[1731511569132,161.6,215.26,215.18,36.97451504]
[1731511569138,161.6,215.25,215.16,36.97451504]
[1731511569373,161.6,215.25,215.22,36.97451504]
[1731511569595,198.57451504,215.25,215.06,20.0]
[1731511569748,161.6,215.24,215.06,20.0]
[1731511570003,20.0,215.22,215.14,36.97451504]
[1731511570251,20.0,215.2,215.12,36.97451504]
[1731511570436,56.97451504,215.2,215.12,36.97451504]
[1731511571025,36.97451504,215.16,215.08,36.97451504]
[1731511571263,13.1884,215.14,215.08,36.97451504]
[1731511571547,181.6,215.13,215.08,36.97451504]
[1731511571734,181.6,215.13,215.11,36.97451504]
[1731511571949,181.6,215.13,215.09,36.97451504]
[1731511572399,124.62548496,215.08,215.04,36.97451504]
[1731511572632,144.62548496,215.07,215.02,36.97451504]
[1731511573158,144.62548496,215.07,215.0,36.97451504]
[1731511573359,20.0,215.05,215.0,36.97451504]
[1731511573857,20.0,215.03,214.98,36.97451504]
[1731511574051,20.0,215.03,214.79,13.1068]
[1731511574052,20.0,215.03,215.0,36.97451504]
[1731511574426,20.0,215.03,215.02,36.97451504]
[1731511575239,20.0,215.03,215.0,36.97451504]
[1731511575452,87.65096992,214.97,214.94,36.97451504]
[1731511575625,87.65096992,214.96,214.94,36.97451504]
[1731511575825,87.65096992,214.95,214.94,36.97451504]
[1731511576747,87.65096992,215.02,214.94,73.94903008]
[1731511576919,87.65096992,215.01,214.95,20.0]
[1731511577128,87.65096992,215.12,215.0,36.97451504]
[1731511577327,87.65096992,215.11,215.04,36.97451504]
[1731511577582,0.1,215.08,215.01,36.97451504]
[1731511578321,0.1,215.07,215.01,36.97451504]
[1731511578576,20.1,215.07,214.99,36.97451504]
[1731511578749,0.1,215.07,214.99,36.97451504]
[1731511578946,0.1,215.06,214.84,20.0]
[1731511579256,20.0,215.04,215.0,36.97451504]
[1731511579754,87.65096992,215.05,215.0,36.97451504]
[1731511579936,20.0,215.04,215.0,36.97451504]
[1731511580255,20.1,215.04,214.96,36.97451504]
[1731511580540,20.1,215.04,214.83,42.63874344]
[1731511580541,20.0,215.04,214.98,36.97451504]
[1731511580764,20.0,215.04,214.83,42.63874344]
[1731511580765,87.65096992,215.03,215.02,36.97451504]
[1731511580931,50.67645488,215.0,214.94,36.97451504]
[1731511581127,50.67645488,214.99,214.94,36.97451504]
[1731511581333,50.67645488,214.99,214.98,36.97451504]
[1731511582359,70.67645488,214.99,214.98,36.97451504]
[1731511582941,20.0,214.98,214.96,36.97451504]
[1731511583166,20.0,214.98,214.94,36.97451504]
[1731511583675,20.0,214.98,214.96,36.97451504]
[1731511583963,50.67645488,214.97,214.96,36.97451504]
[1731511584465,161.6,215.08,214.96,36.97451504]
[1731511584653,161.6,215.07,215.06,36.97451504]
[1731511584857,161.6,215.07,215.04,36.97451504]
[1731511585161,161.6,215.06,215.04,36.97451504]
[1731511585670,20.0,215.05,215.04,36.97451504]
[1731511586900,20.0,215.05,215.02,36.97451504]
[1731511587560,20.0,215.05,215.04,36.97451504]
[1731511587762,20.0,215.05,215.02,36.97451504]
[1731511588064,124.62548496,214.97,214.94,36.97451504]
[1731511588199,124.62548496,214.96,214.94,36.97451504]
[1731511588427,124.62548496,215.04,214.94,36.97451504]
[1731511588664,124.62548496,215.03,214.94,36.97451504]
[1731511589258,124.62548496,215.03,215.02,36.97451504]
[1731511589454,20.0,215.12,215.02,73.94903008]
[1731511589904,46.1223,215.22,215.11,36.97451504]
[1731511590162,46.1223,215.22,215.18,36.97451504]
[1731511590168,46.1223,215.22,215.16,36.97451504]
[1731511590695,46.1223,215.22,215.04,36.97451504]
[1731511590912,46.2223,215.22,215.16,36.97451504]
[1731511591034,0.1,215.18,215.04,36.97451504]
[1731511591285,0.2,215.14,214.94,36.97451504]
[1731511591761,0.1,215.11,214.94,36.97451504]
[1731511592251,20.0,215.07,215.0,36.97451504]
[1731511592555,20.1,215.07,215.0,36.97451504]
[1731511592859,20.0,215.07,215.02,36.97451504]
[1731511593288,0.1,215.06,215.0,36.97451504]
[1731511593515,20.1,215.05,214.98,36.97451504]
[1731511593831,20.0,215.05,215.0,36.97451504]
[1731511594102,44.0231,215.08,215.04,36.97451504]
[1731511594353,44.0231,215.08,214.94,36.97451504]
[1731511594354,44.0231,215.08,215.07,36.97451504]
[1731511594616,44.0231,215.08,215.05,36.97451504]
[1731511594846,44.0231,215.08,215.07,36.97451504]
[1731511596777,31.6759,215.17,215.07,36.97451504]
[1731511596993,31.6759,215.17,215.12,36.97451504]
[1731511597392,0.2,215.16,215.08,36.97451504]
[1731511597597,0.1,215.16,215.08,36.97451504]
[1731511597756,31.6759,215.17,215.12,36.97451504]
[1731511599851,31.6759,215.17,215.05,36.97451504]
[1731511599852,31.6759,215.17,215.14,36.97451504]
[1731511600439,31.6759,215.17,215.12,36.97451504]
[1731511601061,124.62548496,215.05,214.94,36.97451504]
[1731511601241,4.7477,215.16,214.94,36.97451504]
[1731511601242,124.62548496,215.04,214.94,36.97451504]
[1731511601438,144.62548496,215.03,214.94,36.97451504]
[1731511601887,20.0,215.01,214.83,36.97451504]
[1731511602204,124.62548496,215.0,214.85,0.1]
[1731511602449,124.62548496,214.99,214.87,0.1]
[1731511602557,124.62548496,214.99,214.98,36.97451504]
[1731511602876,5.49372101,215.09,214.98,36.97451504]
[1731511602877,20.0,215.06,214.98,36.97451504]
[1731511603068,20.0,215.06,214.84,0.1]
[1731511603287,20.0,215.04,215.0,36.97451504]
[1731511603907,20.0,215.04,215.02,36.97451504]
[1731511604165,161.6,215.05,215.02,36.97451504]
[1731511604661,161.6,215.05,215.0,36.97451504]
[1731511605389,161.6,215.05,215.03,36.97451504]
[1731511605665,161.6,215.04,215.03,36.97451504]
[1731511605863,161.6,215.04,214.95,20.0]
[1731511606167,161.6,215.04,214.94,36.97451504]
[1731511606168,161.6,215.03,214.94,36.97451504]
[1731511606766,161.6,215.03,215.02,36.97451504]
[1731511606948,4.6481,215.14,215.02,36.97451504]
[1731511607157,161.6,215.13,215.09,36.97451504]
[1731511607351,124.62548496,215.05,214.94,36.97451504]
[1731511607566,124.62548496,215.04,214.94,36.97451504]
[1731511608249,23.976884,215.12,215.03,36.97451504]
[1731511608464,20.1,215.08,214.99,36.97451504]
[1731511608675,56.97451504,215.08,214.99,36.97451504]
[1731511608963,161.6,215.07,215.05,36.97451504]
[1731511609363,161.6,215.07,215.03,36.97451504]
[1731511609666,161.6,215.07,215.01,36.97451504]
[1731511610163,161.6,215.06,215.01,36.97451504]
[1731511610352,20.0,215.05,215.01,36.97451504]
[1731511610546,20.0,215.05,214.97,36.97451504]
[1731511610873,20.0,215.03,214.99,36.97451504]
[1731511611159,4.6507,215.02,214.99,36.97451504]
[1731511611360,4.6507,215.02,214.97,36.97451504]
[1731511612061,20.0,215.03,214.97,36.97451504]
[1731511612571,20.0,215.01,214.97,36.97451504]
[1731511613254,161.6,215.0,214.99,36.97451504]
[1731511613462,43.3148,215.04,214.99,36.97451504]
[1731511613659,43.3148,215.04,215.01,36.97451504]
[1731511614490,37.07451504,215.1,214.94,36.97451504]
[1731511614491,161.6,215.03,214.97,12.5011]
[1731511614701,161.6,215.19,215.02,73.94903008]
[1731511614969,161.6,215.18,215.06,20.1]
[1731511615143,161.6,215.18,215.06,20.0]
[1731511615341,161.6,215.18,215.05,36.97451504]
[1731511615548,36.97451504,215.16,214.97,5.72429393]
[1731511615750,161.7,215.15,215.05,36.97451504]
[1731511615946,44.826,215.13,215.05,36.97451504]
[1731511616146,0.1,215.1,215.03,36.97451504]
[1731511616368,124.62548496,215.0,214.99,36.97451504]
[1731511616572,124.62548496,215.0,214.97,36.97451504]
[1731511616742,124.62548496,215.0,214.86,5.96235068]
[1731511616743,144.62548496,215.0,214.99,36.97451504]
[1731511617156,144.62548496,215.0,214.97,36.97451504]
[1731511617468,20.0,214.98,214.97,36.97451504]
[1731511617649,124.62548496,214.99,214.97,36.97451504]
[1731511618153,124.62548496,214.98,214.97,36.97451504]
[1731511618365,124.62548496,214.98,214.78,0.1]
[1731511618577,124.62548496,214.97,214.94,36.97451504]
[1731511618854,124.62548496,214.96,214.86,0.1]
[1731511619055,12.7765,215.05,214.82,0.1]
[1731511619056,124.62548496,214.95,214.83,42.70738105]
[1731511619401,124.62548496,214.95,214.94,36.97451504]
[1731511619612,12.7765,215.05,214.94,36.97451504]
[1731511619898,161.6,215.04,214.99,36.97451504]
[1731511620194,161.6,215.03,215.01,36.97451504]
[1731511620988,161.6,215.03,214.85,0.2]
[1731511621185,161.6,215.02,214.97,36.97451504]
[1731511621385,161.6,215.01,214.94,36.97451504]
[1731511621796,161.6,215.0,214.94,37.07451504]
[1731511622297,161.6,215.0,214.99,36.97451504]
[1731511622484,4.6499,215.06,214.99,36.97451504]
[1731511623084,20.0,215.09,214.99,36.97451504]
[1731511623330,124.62548496,214.98,214.94,36.97451504]
[1731511623491,124.62548496,215.08,214.95,0.1]
[1731511623807,124.62548496,215.07,214.98,0.1]
[1731511624191,124.62548496,215.07,214.95,20.0]
[1731511624395,124.62548496,215.07,215.05,36.97451504]
[1731511624704,0.1,215.17,215.05,36.97451504]
[1731511624705,124.62548496,215.06,215.05,36.97451504]
[1731511624879,67.06711504,215.13,215.03,36.97451504]
[1731511625082,36.97451504,215.09,214.99,36.97451504]
[1731511625295,36.97451504,215.05,214.97,36.97451504]
[1731511625485,41.62471504,215.05,214.97,36.97451504]
[1731511625689,161.6,215.04,214.95,36.97451504]
[1731511625921,69.30961504,215.03,214.95,36.97451504]
[1731511626297,69.30961504,215.03,214.85,5.69408567]
[1731511626298,161.6,215.02,214.99,36.97451504]
[1731511626488,12.2669,215.09,215.01,36.97451504]
[1731511626691,12.2669,215.09,214.94,37.07451504]
[1731511626931,12.2669,215.09,215.07,36.97451504]
[1731511627502,161.6,215.08,215.07,36.97451504]
[1731511628088,161.6,215.12,215.07,36.97451504]
[1731511628313,161.6,215.12,215.11,36.97451504]
[1731511628692,4.6477,215.16,215.11,36.97451504]
[1731511628916,124.62548496,215.08,214.98,0.1]
[1731511629202,4.6477,215.16,214.83,36.97451504]
[1731511629203,124.62548496,215.07,214.94,36.97451504]
[1731511629407,20.0,215.05,214.94,36.97451504]
[1731511629616,4.6501,215.05,214.94,36.97451504]
[1731511629799,4.6501,215.05,214.86,12.8419]
[1731511630005,0.1,215.02,214.83,36.97451504]
[1731511630311,36.97451504,214.94,214.84,36.97451504]
[1731511630505,124.62548496,214.93,214.84,36.97451504]
[1731511630735,32.012,214.92,214.84,36.97451504]
[1731511630896,32.012,214.92,214.86,36.97451504]
[1731511631246,32.012,214.92,214.84,36.97451504]
[1731511631247,124.62548496,214.91,214.84,36.97451504]
[1731511631717,36.97451504,214.9,214.82,36.97451504]
[1731511631907,36.97451504,214.9,214.76,36.97451504]
[1731511631908,36.97451504,214.85,214.76,36.97451504]
[1731511632212,36.97451504,214.83,214.74,36.97451504]
[1731511632411,124.62548496,214.82,214.7,36.97451504]
[1731511632588,124.62548496,214.81,214.72,36.97451504]
[1731511633217,124.62548496,214.81,214.74,36.97451504]
[1731511633521,124.62548496,214.81,214.68,0.4153316]
[1731511633522,124.62548496,214.8,214.72,36.97451504]
[1731511633704,124.62548496,214.82,214.8,36.97451504]
[1731511633913,36.97451504,214.92,214.73,20.0]
[1731511634104,36.97451504,214.9,214.73,20.0]
[1731511634303,124.62548496,214.89,214.81,36.97451504]
[1731511634556,124.62548496,214.88,214.85,36.97451504]
[1731511634737,124.62548496,214.88,214.83,36.97451504]
[1731511635224,124.62548496,214.87,214.77,0.1]
[1731511635413,124.62548496,214.87,214.85,36.97451504]
[1731511635613,124.62548496,214.98,214.86,20.0]
[1731511635814,12.945,215.07,214.94,36.97451504]
[1731511635815,124.62548496,214.97,214.94,36.97451504]
[1731511636036,124.62548496,214.96,214.86,20.1]
[1731511636319,12.945,215.07,214.82,12.8193]
[1731511636320,124.62548496,214.95,214.82,12.8193]
[1731511636500,124.62548496,214.95,214.82,17.55014887]
[1731511636927,124.62548496,214.95,214.94,36.97451504]
[1731511637125,124.62548496,214.95,214.82,17.55014887]
[1731511637126,0.1,214.95,214.82,17.55014887]
[1731511637324,0.1,214.9,214.89,36.97451504]
[1731511637524,161.6,214.86,214.85,36.97451504]
[1731511637828,161.7,214.86,214.85,36.97451504]
[1731511638033,161.6,214.88,214.65,30.571]
[1731511638328,161.6,214.92,214.83,36.97451504]
[1731511638501,0.1,214.98,214.83,36.97451504]
[1731511638502,161.6,214.97,214.83,36.97451504]
[1731511638755,161.6,215.02,214.84,20.93059162]
[1731511638908,161.6,215.01,214.85,7.4532302]
[1731511639124,161.6,215.01,214.86,20.0]
[1731511639511,161.6,215.01,215.0,36.97451504]
[1731511639789,0.1,215.02,215.0,36.97451504]
[1731511639906,0.2,215.04,215.0,36.97451504]
[1731511640111,0.1,215.02,215.0,36.97451504]
[1731511640419,0.1,215.02,214.94,36.97451504]
[1731511640420,0.1,214.96,214.93,36.97451504]
[1731511640615,161.6,214.95,214.88,20.0]
[1731511640909,161.6,214.94,214.88,20.0]
[1731511641423,0.2,214.99,214.84,12.8858]
[1731511641424,161.6,214.98,214.93,36.97451504]
[1731511641730,161.6,214.97,214.85,20.0]
[1731511641957,0.1,215.04,214.96,36.97451504]
[1731511642108,36.97451504,215.09,215.01,36.97451504]
[1731511642109,161.7,215.03,215.01,36.97451504]
[1731511642300,161.6,215.02,215.01,36.97451504]
[1731511643440,12.945,215.07,215.01,36.97451504]
[1731511643632,0.1,215.08,215.05,36.97451504]
[1731511643988,0.1,215.06,215.05,36.97451504]
[1731511644320,161.6,215.07,215.05,36.97451504]
[1731511644529,161.6,215.06,215.05,73.94903008]
[1731511644712,161.6,215.06,215.05,36.97451504]
[1731511645553,41.62181504,215.18,215.05,36.97451504]
[1731511645554,161.6,215.1,215.05,73.94903008]
[1731511645828,161.6,215.16,215.1,36.97451504]
[1731511646025,161.6,215.15,215.06,20.0]
[1731511646220,161.6,215.22,215.06,20.0]
[1731511646424,161.6,215.21,215.06,20.0]
[1731511646611,161.6,215.21,215.05,20.0]
[1731511646810,161.6,215.21,215.2,36.97451504]
[1731511647072,0.1,215.22,215.2,36.97451504]
[1731511647531,32.6562,215.27,215.05,56.97451504]
[1731511647532,0.1,215.19,215.18,36.97451504]
[1731511647733,0.1,215.19,215.16,36.97451504]
[1731511647930,161.6,215.18,215.16,36.97451504]
[1731511648322,0.1,215.17,215.16,36.97451504]
[1731511648651,161.6,215.18,215.16,73.94903008]
[1731511648861,161.6,215.18,215.17,20.0]
[1731511649063,161.6,215.18,215.17,43.776884]
[1731511649449,161.6,215.18,215.16,73.94903008]
[1731511650014,161.6,215.18,215.06,31.4303]
[1731511650015,161.8,215.17,215.14,36.97451504]
[1731511650256,0.1,215.12,215.1,36.97451504]
[1731511650547,0.1,215.08,215.06,36.97451504]
[1731511650726,161.7,215.07,215.06,36.97451504]
[1731511650917,161.7,215.06,214.94,12.9224]
[1731511651122,161.6,215.05,214.94,12.9224]
[1731511651316,161.6,215.08,214.94,12.9224]
[1731511651525,161.6,215.15,214.94,12.9224]
[1731511651843,161.6,215.16,214.95,6.50584077]
[1731511652020,161.6,215.14,214.96,43.776884]
[1731511652831,0.1,215.13,214.96,43.776884]
[1731511653150,0.1,215.11,214.95,20.0]
[1731511653450,4.6473,215.18,214.94,12.9224]
[1731511653451,0.1,215.09,214.94,12.9224]
[1731511653734,0.2,215.07,214.94,12.9224]
[1731511654039,161.6,215.08,214.94,12.9224]
[1731511654734,161.6,215.17,214.95,6.50610068]
[1731511654935,32.4232,215.2,214.95,6.50610068]
[1731511654936,0.1,215.15,214.95,6.50610068]
[1731511655231,161.7,215.16,214.95,6.50610068]
[1731511655232,161.6,215.16,214.96,20.0]
[1731511655419,161.6,215.16,214.96,5.57609389]
[1731511655617,161.6,215.16,214.99,23.776884]
[1731511655811,161.6,215.16,215.01,23.776884]
[1731511656011,161.6,215.15,215.04,20.0]
[1731511656322,161.6,215.17,215.1,20.0]
[1731511656540,161.6,215.16,215.11,23.776884]
[1731511656917,0.1,215.15,214.97,5.57609389]
[1731511657119,161.6,215.14,214.98,43.776884]
[1731511657417,161.6,215.14,214.94,12.9224]
[1731511657418,161.7,215.13,214.94,12.9224]
[1731511657635,0.1,215.03,214.91,5.57609389]